[Event "Titled Tuesday Blitz January 18 2022"]
[White "Liyanage, Ranindu Dilshan"]
[Black "Maksimovic, Bojan"]
[WhiteFideId "9915834"]
[BlackFideId "14408120"]
[WhiteElo "1858"]
[BlackElo "2450"]
[Result "1/2-1/2"]
[Round "11"]
[TimeControl "180+1"]
[Date "2022.01.18"]
[WhiteClock "0:00:11"]
[BlackClock "0:00:13"]

1. e4 {[%clk 0:02:59]}  c5 {[%clk 0:02:59]} 2. Nf3 {[%clk 0:03:00]}  Nc6 {[%clk 0:03:00]} 3. d4 {[%clk 0:03:00]}  cxd4 {[%clk 0:03:01]} 4. Nxd4 {[%clk 0:03:01]}  Nf6 {[%clk 0:03:01]} 5. Nc3 {[%clk 0:03:02]}  e5 {[%clk 0:03:02]} 6. Ndb5 {[%clk 0:03:02]}  h6 {[%clk 0:03:02]} 7. Nd5 {[%clk 0:02:59]}  Nxd5 {[%clk 0:03:02]} 8. exd5 {[%clk 0:03:00]}  a6 {[%clk 0:03:02]} 9. Nc3 {[%clk 0:02:41]}  Nd4 {[%clk 0:03:00]} 10. Be3 {[%clk 0:02:42]}  Bc5 {[%clk 0:02:59]} 11. Ne4 {[%clk 0:02:40]}  d6 {[%clk 0:02:59]} 12. c3 {[%clk 0:02:37]}  O-O {[%clk 0:02:59]} 13. cxd4 {[%clk 0:02:26]}  exd4 {[%clk 0:02:59]} 14. Bxd4 {[%clk 0:02:26]}  Re8 {[%clk 0:02:59]} 15. Bxc5 {[%clk 0:02:11]}  dxc5 {[%clk 0:02:58]} 16. Bd3 {[%clk 0:01:57]}  f5 {[%clk 0:02:46]} 17. f3 {[%clk 0:01:49]}  fxe4 {[%clk 0:02:34]} 18. Bxe4 {[%clk 0:01:44]}  Bf5 {[%clk 0:02:30]} 19. O-O {[%clk 0:01:42]}  Bxe4 {[%clk 0:02:29]} 20. fxe4 {[%clk 0:01:43]}  Rxe4 {[%clk 0:02:29]} 21. Qh5 {[%clk 0:01:42]}  Qe7 {[%clk 0:02:05]} 22. Rad1 {[%clk 0:01:33]}  Rd8 {[%clk 0:01:53]} 23. Qg6 {[%clk 0:01:19]}  Re2 {[%clk 0:01:28]} 24. d6 {[%clk 0:01:09]}  Qg5 {[%clk 0:01:24]} 25. Qxg5 {[%clk 0:00:59]}  hxg5 {[%clk 0:01:24]} 26. Rd5 {[%clk 0:00:59]}  b6 {[%clk 0:01:21]} 27. b3 {[%clk 0:00:51]}  Rxa2 {[%clk 0:00:48]} 28. Re1 {[%clk 0:00:49]}  Rd7 {[%clk 0:00:42]} 29. h3 {[%clk 0:00:29]}  a5 {[%clk 0:00:39]} 30. Re8+ {[%clk 0:00:25]}  Kf7 {[%clk 0:00:39]} 31. Rb8 {[%clk 0:00:26]}  a4 {[%clk 0:00:33]} 32. bxa4 {[%clk 0:00:24]}  Rxa4 {[%clk 0:00:32]} 33. Rxb6 {[%clk 0:00:25]}  g4 {[%clk 0:00:19]} 34. hxg4 {[%clk 0:00:20]}  Rxg4 {[%clk 0:00:17]} 35. Rxc5 {[%clk 0:00:20]}  Rd4 {[%clk 0:00:16]} 36. Rf5+ {[%clk 0:00:16]}  Ke6 {[%clk 0:00:15]} 37. Rg5 {[%clk 0:00:16]}  Kf6 {[%clk 0:00:15]} 38. Rg3 {[%clk 0:00:13]}  R4xd6 {[%clk 0:00:06]} 39. Rxd6+ {[%clk 0:00:14]}  Rxd6 {[%clk 0:00:07]} 40. Rf3+ {[%clk 0:00:15]}  Kg6 {[%clk 0:00:07]} 41. Kh2 {[%clk 0:00:16]}  Kh6 {[%clk 0:00:07]} 42. Kg3 {[%clk 0:00:16]}  Kg5 {[%clk 0:00:07]} 43. Rb3 {[%clk 0:00:15]}  g6 {[%clk 0:00:08]} 44. Rb5+ {[%clk 0:00:15]}  Kf6 {[%clk 0:00:08]} 45. Kf3 {[%clk 0:00:15]}  Rd3+ {[%clk 0:00:08]} 46. Kf4 {[%clk 0:00:14]}  Rd4+ {[%clk 0:00:06]} 47. Kf3 {[%clk 0:00:14]}  Ra4 {[%clk 0:00:07]} 48. g3 {[%clk 0:00:13]}  Kg7 {[%clk 0:00:06]} 49. Kg2 {[%clk 0:00:12]}  Kh6 {[%clk 0:00:07]} 50. Kh3 {[%clk 0:00:12]}  Ra3 {[%clk 0:00:07]} 51. Rb6 {[%clk 0:00:12]}  Ra4 {[%clk 0:00:07]} 52. Rb5 {[%clk 0:00:13]}  Ra3 {[%clk 0:00:08]} 53. Rb6 {[%clk 0:00:13]}  Ra2 {[%clk 0:00:08]} 54. Rb5 {[%clk 0:00:13]}  Ra1 {[%clk 0:00:09]} 55. Rb6 {[%clk 0:00:14]}  Ra4 {[%clk 0:00:09]} 56. Rb8 {[%clk 0:00:14]}  Kg7 {[%clk 0:00:10]} 57. Rb7+ {[%clk 0:00:14]}  Kf6 {[%clk 0:00:10]} 58. Rb5 {[%clk 0:00:15]}  Ra1 {[%clk 0:00:10]} 59. Rb6+ {[%clk 0:00:15]}  Kg5 {[%clk 0:00:10]} 60. Rb5+ {[%clk 0:00:16]}  Kh6 {[%clk 0:00:10]} 61. Rb6 {[%clk 0:00:17]}  Rh1+ {[%clk 0:00:10]} 62. Kg2 {[%clk 0:00:16]}  Rh5 {[%clk 0:00:11]} 63. g4 {[%clk 0:00:16]}  Ra5 {[%clk 0:00:10]} 64. Kg3 {[%clk 0:00:16]}  Kg5 {[%clk 0:00:11]} 65. Rb4 {[%clk 0:00:16]}  Ra3+ {[%clk 0:00:10]} 66. Kg2 {[%clk 0:00:16]}  Kh4 {[%clk 0:00:11]} 67. Rb6 {[%clk 0:00:11]}  g5 {[%clk 0:00:11]} 68. Rb4 {[%clk 0:00:10]}  Ra2+ {[%clk 0:00:09]} 69. Kg1 {[%clk 0:00:07]}  Kg3 {[%clk 0:00:08]} 70. Rb3+ {[%clk 0:00:08]}  Kh4 {[%clk 0:00:07]} 71. Rc3 {[%clk 0:00:08]}  Rb2 {[%clk 0:00:07]} 72. Ra3 {[%clk 0:00:08]}  Rb1+ {[%clk 0:00:06]} 73. Kg2 {[%clk 0:00:07]}  Rb2+ {[%clk 0:00:07]} 74. Kg1 {[%clk 0:00:08]}  Kxg4 {[%clk 0:00:07]} 75. Rc3 {[%clk 0:00:08]}  Kh4 {[%clk 0:00:08]} 76. Ra3 {[%clk 0:00:08]}  Kg4 {[%clk 0:00:08]} 77. Rd3 {[%clk 0:00:08]}  Kf4 {[%clk 0:00:09]} 78. Ra3 {[%clk 0:00:09]}  Re2 {[%clk 0:00:08]} 79. Rc3 {[%clk 0:00:09]}  g4 {[%clk 0:00:05]} 80. Ra3 {[%clk 0:00:10]}  Kg5 {[%clk 0:00:05]} 81. Rb3 {[%clk 0:00:09]}  Kh4 {[%clk 0:00:05]} 82. Ra3 {[%clk 0:00:10]}  Rd2 {[%clk 0:00:06]} 83. Rb3 {[%clk 0:00:10]}  Ra2 {[%clk 0:00:07]} 84. Rc3 {[%clk 0:00:10]}  Ra8 {[%clk 0:00:06]} 85. Rb3 {[%clk 0:00:10]}  g3 {[%clk 0:00:05]} 86. Rb7 {[%clk 0:00:08]}  Ra5 {[%clk 0:00:04]} 87. Rh7+ {[%clk 0:00:07]}  Kg4 {[%clk 0:00:03]} 88. Rg7+ {[%clk 0:00:07]}  Kf4 {[%clk 0:00:04]} 89. Rf7+ {[%clk 0:00:08]}  Ke4 {[%clk 0:00:04]} 90. Re7+ {[%clk 0:00:05]}  Kf3 {[%clk 0:00:04]} 91. Rf7+ {[%clk 0:00:06]}  Kg4 {[%clk 0:00:05]} 92. Rg7+ {[%clk 0:00:06]}  Rg5 {[%clk 0:00:05]} 93. Rxg5+ {[%clk 0:00:06]}  Kxg5 {[%clk 0:00:06]} 94. Kg2 {[%clk 0:00:07]}  Kg4 {[%clk 0:00:06]} 95. Kg1 {[%clk 0:00:08]}  Kf4 {[%clk 0:00:07]} 96. Kg2 {[%clk 0:00:07]}  Kg4 {[%clk 0:00:08]} 97. Kg1 {[%clk 0:00:08]}  Kf5 {[%clk 0:00:09]} 98. Kg2 {[%clk 0:00:08]}  Kf4 {[%clk 0:00:09]} 99. Kg1 {[%clk 0:00:09]}  Kg5 {[%clk 0:00:10]} 100. Kg2 {[%clk 0:00:09]}  Kh4 {[%clk 0:00:11]} 101. Kg1 {[%clk 0:00:10]}  Kh3 {[%clk 0:00:12]} 102. Kh1 {[%clk 0:00:10]}  Kh4 {[%clk 0:00:13]} 103. Kg2 {[%clk 0:00:11]}  Kg4 {[%clk 0:00:13]} 1/2-1/2


[Site "https://www.chess.com"]

[Event "Titled Tuesday Blitz January 18 2022"]
[White "Ljukin, Sergei"]
[Black "Jakubowska, Anna"]
[WhiteFideId "14102200"]
[BlackFideId "1121952"]
[WhiteElo "2312"]
[BlackElo "1924"]
[Result "0-1"]
[Round "11"]
[TimeControl "180+1"]
[Date "2022.01.18"]
[WhiteClock "0:00:14"]
[BlackClock "0:00:14"]

1. e4 {[%clk 0:01:12]}  c6 {[%clk 0:02:58]} 2. d4 {[%clk 0:01:11]}  d5 {[%clk 0:02:59]} 3. e5 {[%clk 0:01:12]}  Bf5 {[%clk 0:02:58]} 4. Nd2 {[%clk 0:01:12]}  e6 {[%clk 0:02:58]} 5. Nb3 {[%clk 0:01:13]}  Nd7 {[%clk 0:02:55]} 6. Nf3 {[%clk 0:01:13]}  h6 {[%clk 0:02:54]} 7. Be2 {[%clk 0:01:13]}  Ne7 {[%clk 0:02:53]} 8. O-O {[%clk 0:01:13]}  g5 {[%clk 0:02:53]} 9. h3 {[%clk 0:01:12]}  Bg7 {[%clk 0:02:51]} 10. Nh2 {[%clk 0:01:12]}  Qc7 {[%clk 0:02:50]} 11. f4 {[%clk 0:01:12]}  gxf4 {[%clk 0:02:45]} 12. Bxf4 {[%clk 0:01:12]}  O-O-O {[%clk 0:02:42]} 13. Nf3 {[%clk 0:01:11]}  Rhg8 {[%clk 0:02:36]} 14. Kh1 {[%clk 0:01:10]}  c5 {[%clk 0:02:12]} 15. c4 {[%clk 0:01:00]}  Kb8 {[%clk 0:02:09]} 16. Rc1 {[%clk 0:00:58]}  dxc4 {[%clk 0:01:18]} 17. Rxc4 {[%clk 0:00:55]}  Nd5 {[%clk 0:01:11]} 18. Bh2 {[%clk 0:00:51]}  Ne3 {[%clk 0:01:11]} 19. Qd2 {[%clk 0:00:44]}  Nxc4 {[%clk 0:01:08]} 20. Bxc4 {[%clk 0:00:44]}  Be4 {[%clk 0:00:58]} 21. Qe3 {[%clk 0:00:36]}  Bxf3 {[%clk 0:00:56]} 22. Qxf3 {[%clk 0:00:36]}  cxd4 {[%clk 0:00:54]} 23. Bd3 {[%clk 0:00:35]}  Bxe5 {[%clk 0:00:52]} 24. Bxe5 {[%clk 0:00:34]}  Nxe5 {[%clk 0:00:52]} 25. Qe4 {[%clk 0:00:34]}  Nxd3 {[%clk 0:00:50]} 26. Qxd3 {[%clk 0:00:35]}  f5 {[%clk 0:00:45]} 27. Rc1 {[%clk 0:00:30]}  Qg3 {[%clk 0:00:43]} 28. Qd2 {[%clk 0:00:30]}  Qe3 {[%clk 0:00:29]} 29. Qb4 {[%clk 0:00:26]}  d3 {[%clk 0:00:25]} 30. Rg1 {[%clk 0:00:21]}  Qb6 {[%clk 0:00:19]} 31. Qd2 {[%clk 0:00:19]}  e5 {[%clk 0:00:19]} 32. Rf1 {[%clk 0:00:17]}  e4 {[%clk 0:00:19]} 33. Re1 {[%clk 0:00:17]}  Rge8 {[%clk 0:00:16]} 34. Qf4+ {[%clk 0:00:16]}  Ka8 {[%clk 0:00:15]} 35. Qxf5 {[%clk 0:00:16]}  d2 {[%clk 0:00:14]} 36. Rd1 {[%clk 0:00:15]}  e3 {[%clk 0:00:14]} 37. Nc5 {[%clk 0:00:14]}  e2 {[%clk 0:00:14]} 0-1


[Site "https://www.chess.com"]

[Event "Titled Tuesday Blitz January 18 2022"]
[White "Lomaia, Diana"]
[Black "Swicarz, Maciej"]
[WhiteFideId "13612476"]
[BlackFideId "1113585"]
[WhiteElo "1744"]
[BlackElo "2063"]
[Result "0-1"]
[Round "11"]
[TimeControl "180+1"]
[Date "2022.01.18"]
[WhiteClock "0:00:34"]
[BlackClock "0:00:43"]

1. d4 {[%clk 0:03:00]}  f5 {[%clk 0:02:58]} 2. g3 {[%clk 0:02:59]}  Nf6 {[%clk 0:02:57]} 3. Bg2 {[%clk 0:03:00]}  g6 {[%clk 0:02:58]} 4. Nf3 {[%clk 0:03:00]}  Bg7 {[%clk 0:02:58]} 5. O-O {[%clk 0:03:01]}  O-O {[%clk 0:02:58]} 6. c4 {[%clk 0:03:02]}  d6 {[%clk 0:02:59]} 7. Nc3 {[%clk 0:03:02]}  Qe8 {[%clk 0:02:59]} 8. Re1 {[%clk 0:03:02]}  Qf7 {[%clk 0:02:59]} 9. e4 {[%clk 0:02:53]}  fxe4 {[%clk 0:02:55]} 10. Nxe4 {[%clk 0:02:44]}  Nxe4 {[%clk 0:02:54]} 11. Rxe4 {[%clk 0:02:44]}  Nc6 {[%clk 0:02:53]} 12. d5 {[%clk 0:02:41]}  Ne5 {[%clk 0:02:51]} 13. Rf4 {[%clk 0:02:36]}  Qe8 {[%clk 0:02:47]} 14. Nxe5 {[%clk 0:02:34]}  Bxe5 {[%clk 0:02:46]} 15. Rxf8+ {[%clk 0:02:34]}  Qxf8 {[%clk 0:02:46]} 16. Be3 {[%clk 0:02:30]}  Bxb2 {[%clk 0:02:41]} 17. Rb1 {[%clk 0:02:27]}  Bg7 {[%clk 0:02:40]} 18. c5 {[%clk 0:02:26]}  b6 {[%clk 0:02:37]} 19. cxd6 {[%clk 0:02:18]}  cxd6 {[%clk 0:02:35]} 20. Rc1 {[%clk 0:02:18]}  Bf5 {[%clk 0:02:31]} 21. Rc7 {[%clk 0:02:16]}  Qd8 {[%clk 0:02:31]} 22. Qc1 {[%clk 0:01:56]}  Rc8 {[%clk 0:02:30]} 23. Rc6 {[%clk 0:01:56]}  Bd7 {[%clk 0:02:28]} 24. Bg5 {[%clk 0:01:48]}  Bxc6 {[%clk 0:02:16]} 25. dxc6 {[%clk 0:01:48]}  Rc7 {[%clk 0:02:16]} 26. Bd5+ {[%clk 0:01:47]}  Kh8 {[%clk 0:02:16]} 27. Qf4 {[%clk 0:01:38]}  Qe8 {[%clk 0:02:13]} 28. h4 {[%clk 0:01:27]}  Be5 {[%clk 0:02:08]} 29. Qf3 {[%clk 0:01:23]}  Bg7 {[%clk 0:01:43]} 30. Qf4 {[%clk 0:01:13]}  b5 {[%clk 0:01:40]} 31. g4 {[%clk 0:01:11]}  a5 {[%clk 0:01:37]} 32. a3 {[%clk 0:01:08]}  Be5 {[%clk 0:01:27]} 33. Qf3 {[%clk 0:01:07]}  b4 {[%clk 0:01:26]} 34. axb4 {[%clk 0:01:06]}  axb4 {[%clk 0:01:27]} 35. h5 {[%clk 0:01:04]}  gxh5 {[%clk 0:01:26]} 36. gxh5 {[%clk 0:01:04]}  e6 {[%clk 0:01:23]} 37. Bxe6 {[%clk 0:00:58]}  Rg7 {[%clk 0:01:19]} 38. Qf5 {[%clk 0:00:54]}  h6 {[%clk 0:01:04]} 39. c7 {[%clk 0:00:49]}  Rxc7 {[%clk 0:00:44]} 40. Bf6+ {[%clk 0:00:45]}  Bxf6 {[%clk 0:00:43]} 41. Qxf6+ {[%clk 0:00:45]}  Rg7+ {[%clk 0:00:44]} 42. Kh2 {[%clk 0:00:39]}  Qxh5+ {[%clk 0:00:43]} 43. Bh3 {[%clk 0:00:37]}  Qe5+ {[%clk 0:00:42]} 44. Qxe5 {[%clk 0:00:34]}  dxe5 {[%clk 0:00:43]} 0-1


[Site "https://www.chess.com"]

[Event "Titled Tuesday Blitz January 18 2022"]
[White "Lorparizangeneh, Shahin"]
[Black "Carbone, Diego"]
[WhiteFideId "12521604"]
[BlackFideId "3002179"]
[WhiteElo "2525"]
[BlackElo "2199"]
[Result "1-0"]
[Round "11"]
[TimeControl "180+1"]
[Date "2022.01.18"]
[WhiteClock "0:00:17"]
[BlackClock "0:00:02"]

1. e4 {[%clk 0:03:00]}  e5 {[%clk 0:02:58]} 2. Nf3 {[%clk 0:03:01]}  Nc6 {[%clk 0:02:58]} 3. Bb5 {[%clk 0:03:01]}  a6 {[%clk 0:02:58]} 4. Ba4 {[%clk 0:03:01]}  Nf6 {[%clk 0:02:58]} 5. O-O {[%clk 0:03:01]}  b5 {[%clk 0:02:58]} 6. Bb3 {[%clk 0:03:01]}  Bc5 {[%clk 0:02:59]} 7. a4 {[%clk 0:02:56]}  Rb8 {[%clk 0:02:58]} 8. c3 {[%clk 0:02:55]}  d6 {[%clk 0:02:58]} 9. d4 {[%clk 0:02:56]}  Bb6 {[%clk 0:02:58]} 10. a5 {[%clk 0:02:56]}  Ba7 {[%clk 0:02:58]} 11. Be3 {[%clk 0:02:56]}  Bg4 {[%clk 0:02:57]} 12. Nbd2 {[%clk 0:02:56]}  exd4 {[%clk 0:02:20]} 13. cxd4 {[%clk 0:02:50]}  O-O {[%clk 0:02:20]} 14. Qe1 {[%clk 0:02:46]}  Re8 {[%clk 0:02:15]} 15. d5 {[%clk 0:02:40]}  Bxe3 {[%clk 0:02:08]} 16. Qxe3 {[%clk 0:02:41]}  Bxf3 {[%clk 0:02:04]} 17. Nxf3 {[%clk 0:02:38]}  Rxe4 {[%clk 0:02:04]} 18. Qc3 {[%clk 0:02:19]}  Ne7 {[%clk 0:02:00]} 19. Rac1 {[%clk 0:02:10]}  Nexd5 {[%clk 0:01:57]} 20. Qc6 {[%clk 0:02:04]}  Nb4 {[%clk 0:01:54]} 21. Qxc7 {[%clk 0:02:03]}  Qxc7 {[%clk 0:01:54]} 22. Rxc7 {[%clk 0:02:04]}  d5 {[%clk 0:01:55]} 23. Ng5 {[%clk 0:01:59]}  Re2 {[%clk 0:01:52]} 24. Rfc1 {[%clk 0:01:56]}  Rbe8 {[%clk 0:01:33]} 25. h3 {[%clk 0:01:48]}  Rxb2 {[%clk 0:01:32]} 26. Bd1 {[%clk 0:01:43]}  Nd3 {[%clk 0:01:22]} 27. R1c3 {[%clk 0:01:28]}  Nxf2 {[%clk 0:01:12]} 28. Bf3 {[%clk 0:01:23]}  h6 {[%clk 0:01:07]} 29. Nxf7 {[%clk 0:01:19]}  Re1+ {[%clk 0:01:06]} 30. Kh2 {[%clk 0:01:18]}  Rh1+ {[%clk 0:01:06]} 31. Kg3 {[%clk 0:01:17]}  N2e4+ {[%clk 0:01:04]} 32. Kf4 {[%clk 0:01:05]}  Nxc3 {[%clk 0:00:57]} 33. Ne5 {[%clk 0:01:06]}  Rb4+ {[%clk 0:00:50]} 34. Kf5 {[%clk 0:01:03]}  Re1 {[%clk 0:00:38]} 35. Rc8+ {[%clk 0:00:57]}  Kh7 {[%clk 0:00:34]} 36. Rxc3 {[%clk 0:00:52]}  Rc4 {[%clk 0:00:14]} 37. Rd3 {[%clk 0:00:40]}  d4 {[%clk 0:00:11]} 38. Nf7 {[%clk 0:00:21]}  Rc5+ {[%clk 0:00:09]} 39. Kf4 {[%clk 0:00:21]}  g5+ {[%clk 0:00:08]} 40. Kg3 {[%clk 0:00:21]}  Rf5 {[%clk 0:00:06]} 41. Nd6 {[%clk 0:00:19]}  Rfe5 {[%clk 0:00:04]} 42. Rxd4 {[%clk 0:00:18]}  Re7 {[%clk 0:00:04]} 43. Nf5 {[%clk 0:00:17]}  Rf7 {[%clk 0:00:03]} 44. Nd6 {[%clk 0:00:18]}  Rd7 {[%clk 0:00:02]} 45. Bc6 {[%clk 0:00:18]}  Rxd6 {[%clk 0:00:01]} 46. Rxd6 {[%clk 0:00:18]}  Nh5+ {[%clk 0:00:02]} 47. Kf2 {[%clk 0:00:18]}  Re7 {[%clk 0:00:02]} 48. Bf3 {[%clk 0:00:17]}  Nf4 {[%clk 0:00:02]} 49. Rxa6 {[%clk 0:00:17]}  b4 {[%clk 0:00:01]} 50. Rb6 {[%clk 0:00:17]}  Rf7 {[%clk 0:00:02]} 51. a6 {[%clk 0:00:17]} 1-0


[Site "https://www.chess.com"]

[Event "Titled Tuesday Blitz January 18 2022"]
[White "Mokshanov, Alexey"]
[Black "Kamsky, Gata"]
[WhiteFideId "24121657"]
[BlackFideId "2000024"]
[WhiteElo "2141"]
[BlackElo "2645"]
[Result "0-1"]
[Round "11"]
[TimeControl "180+1"]
[Date "2022.01.18"]
[WhiteClock "0:00:57"]
[BlackClock "0:01:15"]

1. e4 {[%clk 0:03:00]}  c5 {[%clk 0:02:54]} 2. Nf3 {[%clk 0:03:00]}  e6 {[%clk 0:02:53]} 3. c3 {[%clk 0:03:00]}  d5 {[%clk 0:02:51]} 4. exd5 {[%clk 0:02:59]}  exd5 {[%clk 0:02:51]} 5. Bb5+ {[%clk 0:02:59]}  Bd7 {[%clk 0:02:50]} 6. Bxd7+ {[%clk 0:02:59]}  Qxd7 {[%clk 0:02:47]} 7. O-O {[%clk 0:02:59]}  Bd6 {[%clk 0:02:47]} 8. d4 {[%clk 0:03:00]}  c4 {[%clk 0:02:47]} 9. b3 {[%clk 0:02:59]}  cxb3 {[%clk 0:02:44]} 10. axb3 {[%clk 0:02:59]}  Ne7 {[%clk 0:02:43]} 11. Ba3 {[%clk 0:02:59]}  Nbc6 {[%clk 0:02:42]} 12. Bxd6 {[%clk 0:02:54]}  Qxd6 {[%clk 0:02:42]} 13. Re1 {[%clk 0:02:53]}  O-O {[%clk 0:02:42]} 14. Nbd2 {[%clk 0:02:54]}  a6 {[%clk 0:02:41]} 15. Nf1 {[%clk 0:02:51]}  Rac8 {[%clk 0:02:38]} 16. Ne3 {[%clk 0:02:39]}  Rfe8 {[%clk 0:02:36]} 17. Qd2 {[%clk 0:02:34]}  Qd7 {[%clk 0:02:23]} 18. h3 {[%clk 0:02:29]}  Nf5 {[%clk 0:02:21]} 19. Nxf5 {[%clk 0:02:20]}  Qxf5 {[%clk 0:02:21]} 20. Rxe8+ {[%clk 0:02:20]}  Rxe8 {[%clk 0:02:20]} 21. Re1 {[%clk 0:02:21]}  Re4 {[%clk 0:02:17]} 22. Rxe4 {[%clk 0:02:06]}  Qxe4 {[%clk 0:02:15]} 23. Qg5 {[%clk 0:01:43]}  f6 {[%clk 0:01:48]} 24. Qg4 {[%clk 0:01:41]}  Qxg4 {[%clk 0:01:45]} 25. hxg4 {[%clk 0:01:41]}  h6 {[%clk 0:01:44]} 26. Nd2 {[%clk 0:01:40]}  Kf7 {[%clk 0:01:43]} 27. f3 {[%clk 0:01:24]}  a5 {[%clk 0:01:42]} 28. Kf2 {[%clk 0:01:25]}  b5 {[%clk 0:01:41]} 29. Nb1 {[%clk 0:01:25]}  a4 {[%clk 0:01:35]} 30. b4 {[%clk 0:01:22]}  Na7 {[%clk 0:01:32]} 31. Na3 {[%clk 0:01:23]}  Ke6 {[%clk 0:01:32]} 32. Ke3 {[%clk 0:01:21]}  Kd6 {[%clk 0:01:31]} 33. f4 {[%clk 0:01:18]}  Kc6 {[%clk 0:01:28]} 34. f5 {[%clk 0:01:17]}  Nc8 {[%clk 0:01:28]} 35. Ke2 {[%clk 0:01:05]}  Nd6 {[%clk 0:01:27]} 36. Kd3 {[%clk 0:01:02]}  Kd7 {[%clk 0:01:17]} 37. Ke3 {[%clk 0:01:00]}  Ke7 {[%clk 0:01:15]} 38. Kd3 {[%clk 0:01:00]}  Kf7 {[%clk 0:01:15]} 39. Nc2 {[%clk 0:00:57]}  Nc4 {[%clk 0:01:15]} 0-1


[Site "https://www.chess.com"]

[Event "Titled Tuesday Blitz January 18 2022"]
[White "Nakamura, Hikaru"]
[Black "Klimkowski, Jan"]
[WhiteFideId "2016192"]
[BlackFideId "21856222"]
[WhiteElo "2850"]
[BlackElo "2172"]
[Result "1-0"]
[Round "11"]
[TimeControl "180+1"]
[Date "2022.01.18"]
[WhiteClock "0:01:16"]
[BlackClock "0:00:09"]

1. e4 {[%clk 0:03:00]}  c5 {[%clk 0:02:59]} 2. Nf3 {[%clk 0:02:59]}  d6 {[%clk 0:03:00]} 3. d4 {[%clk 0:03:00]}  cxd4 {[%clk 0:03:00]} 4. Qxd4 {[%clk 0:03:01]}  Nc6 {[%clk 0:03:00]} 5. Bb5 {[%clk 0:03:01]}  a6 {[%clk 0:03:01]} 6. Bxc6+ {[%clk 0:03:02]}  bxc6 {[%clk 0:03:02]} 7. c4 {[%clk 0:03:02]}  e5 {[%clk 0:03:02]} 8. Qd3 {[%clk 0:03:03]}  Be7 {[%clk 0:03:02]} 9. Nc3 {[%clk 0:03:03]}  h6 {[%clk 0:03:02]} 10. Be3 {[%clk 0:03:03]}  Nf6 {[%clk 0:03:03]} 11. c5 {[%clk 0:03:04]}  O-O {[%clk 0:02:49]} 12. O-O-O {[%clk 0:02:57]}  d5 {[%clk 0:02:28]} 13. exd5 {[%clk 0:02:54]}  e4 {[%clk 0:02:26]} 14. Nxe4 {[%clk 0:02:51]}  Nxd5 {[%clk 0:02:26]} 15. Ne5 {[%clk 0:02:48]}  Bb7 {[%clk 0:01:57]} 16. Nc4 {[%clk 0:02:46]}  a5 {[%clk 0:01:49]} 17. Ncd6 {[%clk 0:02:39]}  Ba6 {[%clk 0:01:48]} 18. Qc2 {[%clk 0:02:39]}  f5 {[%clk 0:01:23]} 19. Nc3 {[%clk 0:02:35]}  Nb4 {[%clk 0:01:22]} 20. Qb3+ {[%clk 0:02:34]}  Kh7 {[%clk 0:01:23]} 21. Kb1 {[%clk 0:02:28]}  Rb8 {[%clk 0:01:17]} 22. Nc4 {[%clk 0:02:20]}  Qc7 {[%clk 0:01:06]} 23. Nb6 {[%clk 0:02:18]}  Bd3+ {[%clk 0:01:05]} 24. Kc1 {[%clk 0:02:07]}  f4 {[%clk 0:01:00]} 25. a3 {[%clk 0:01:56]}  Bc2 {[%clk 0:00:59]} 26. Qc4 {[%clk 0:01:50]}  Bxd1 {[%clk 0:00:59]} 27. Bd4 {[%clk 0:01:48]}  f3 {[%clk 0:00:37]} 28. Rxd1 {[%clk 0:01:34]}  Qf4+ {[%clk 0:00:34]} 29. Be3 {[%clk 0:01:34]}  Qxc4 {[%clk 0:00:31]} 30. Nxc4 {[%clk 0:01:35]}  Nd5 {[%clk 0:00:32]} 31. gxf3 {[%clk 0:01:29]}  Nxc3 {[%clk 0:00:31]} 32. bxc3 {[%clk 0:01:29]}  Rxf3 {[%clk 0:00:31]} 33. Ne5 {[%clk 0:01:29]}  Rf5 {[%clk 0:00:15]} 34. Nxc6 {[%clk 0:01:28]}  Rb7 {[%clk 0:00:16]} 35. Nxe7 {[%clk 0:01:26]}  Rxe7 {[%clk 0:00:17]} 36. Kc2 {[%clk 0:01:27]}  h5 {[%clk 0:00:17]} 37. Kb3 {[%clk 0:01:26]}  g5 {[%clk 0:00:17]} 38. Kc4 {[%clk 0:01:26]}  g4 {[%clk 0:00:18]} 39. c6 {[%clk 0:01:26]}  h4 {[%clk 0:00:14]} 40. Rd7 {[%clk 0:01:23]}  Rff7 {[%clk 0:00:14]} 41. Rxe7 {[%clk 0:01:19]}  Rxe7 {[%clk 0:00:15]} 42. Bb6 {[%clk 0:01:19]}  Kg6 {[%clk 0:00:13]} 43. c7 {[%clk 0:01:19]}  Re8 {[%clk 0:00:14]} 44. Kd5 {[%clk 0:01:17]}  Kf7 {[%clk 0:00:14]} 45. Kc6 {[%clk 0:01:17]}  Ke6 {[%clk 0:00:13]} 46. Kb7 {[%clk 0:01:17]}  Kd7 {[%clk 0:00:13]} 47. Bxa5 {[%clk 0:01:17]}  g3 {[%clk 0:00:10]} 48. fxg3 {[%clk 0:01:17]}  h3 {[%clk 0:00:09]} 49. Bb6 {[%clk 0:01:16]}  Rg8 {[%clk 0:00:09]} 50. c4 {[%clk 0:01:16]} 1-0


[Site "https://www.chess.com"]